bitfinex-derivatives/quotes_SOLF0:USTF0_20241103
["timestamp","ask_amount","ask_price","bid_price","bid_amount"]
[1730671828286,8.44495662,163.68,163.63,9.83665662]
[1730671828482,11.50085662,163.68,163.64,3.0564]
[1730671828674,8.44495662,163.68,163.63,8.44495662]
[1730671829177,3.0563,163.66,163.63,8.44495662]
[1730671829373,8.44495662,163.67,163.62,8.44495662]
[1730671829572,3.0564,163.65,163.62,8.44495662]
[1730671829781,11.50135662,163.65,163.61,3.057]
[1730671830173,3.0564,163.65,163.62,3.0569]
[1730671832691,3.0564,163.65,163.61,11.50195662]
[1730671833282,11.50135662,163.65,163.61,3.057]
[1730671833979,11.50175662,163.63,163.59,11.50225662]
[1730671834786,11.50175662,163.63,163.6,3.0572]
[1730671835691,11.50175662,163.63,163.59,11.50225662]
[1730671836689,8.44495662,163.62,163.57,8.44495662]
[1730671836994,3.0573,163.6,163.57,3.0578]
[1730671837201,8.44495662,163.61,163.57,3.0578]
[1730671838298,11.50215662,163.61,163.57,3.0578]
[1730671841503,8.44495662,163.61,163.56,9.72355662]
[1730671841797,8.44495662,163.57,163.51,1.3101]
[1730671841995,8.44495662,163.55,163.49,11.46495662]
[1730671842587,8.44495662,163.55,163.5,3.059]
[1730671842988,8.44495662,163.55,163.46,6.08327318]
[1730671842989,8.44495662,163.52,163.46,8.44495662]
[1730671843193,8.44495662,163.49,163.45,4.0911]
[1730671845094,8.44495662,163.49,163.46,3.0598]
[1730671846901,11.50405662,163.51,163.47,3.0596]
[1730671847698,8.44495662,163.51,163.45,4.0911]
[1730671847887,3.04,163.52,163.46,3.0597]
[1730671847888,8.44495662,163.49,163.46,3.0597]
[1730671848097,8.44495662,163.49,163.43,8.44495662]
[1730671848396,8.44495662,163.47,163.43,11.50535662]
[1730671848601,8.44495662,163.47,163.41,36.77093213]
[1730671848798,8.44495662,163.45,163.41,36.77093213]
[1730671848986,8.44495662,163.45,163.42,3.0605]
[1730671849191,8.44495662,163.45,163.41,36.77093213]
[1730671849386,8.44495662,163.47,163.41,36.77093213]
[1730671849587,1.3094,163.51,163.46,8.44495662]
[1730671849787,3.02,163.51,163.46,8.44495662]
[1730671850298,3.02,163.51,163.47,8.44495662]
[1730671850498,9.74835662,163.55,163.49,8.44495662]
[1730671850704,3.02,163.54,163.51,3.0588]
[1730671851596,3.02,163.54,163.5,11.50405662]
[1730671851803,3.02,163.54,163.5,3.0591]
[1730671853502,6.0784,163.54,163.5,3.0591]
[1730671856111,11.46495662,163.54,163.48,3.0594]
[1730671856317,11.46495662,163.54,163.47,8.44495662]
[1730671857106,3.0586,163.53,163.49,3.0593]
[1730671857307,3.02,163.54,163.49,8.44495662]
[1730671857713,11.46495662,163.54,163.49,8.44495662]
[1730671858411,8.44495662,163.5,163.41,8.44495662]
[1730671858610,8.44495662,163.5,163.4,3.9942]
[1730671858611,8.44495662,163.46,163.4,12.43915662]
[1730671858811,11.50485662,163.46,163.42,3.0606]
[1730671859113,11.50485662,163.46,163.4,12.43915662]
[1730671859505,11.50485662,163.46,163.41,3.0607]
[1730671860411,3.0601,163.45,163.41,3.0607]
[1730671861113,11.50505662,163.45,163.41,3.0607]
[1730671863009,3.02,163.5,163.42,3.0605]
[1730671863010,11.50485662,163.46,163.42,3.0605]
[1730671863210,8.44495662,163.46,163.42,3.0605]
[1730671864308,11.50485662,163.46,163.42,3.0605]
[1730671864905,3.0598,163.47,163.43,11.50525662]
[1730671865211,11.46495662,163.5,163.44,8.44495662]
[1730671865808,3.0595,163.49,163.44,11.50505662]
[1730671867122,3.0595,163.48,163.44,11.50505662]
[1730671867307,3.0595,163.48,163.44,3.0601]
[1730671872906,8.44495662,163.49,163.43,8.44495662]
[1730671873131,6.0792,163.5,163.46,11.50465662]
[1730671874018,8.44495662,163.54,163.47,8.44495662]
[1730671874328,11.46495662,163.54,163.49,8.44495662]
[1730671874714,14.52345662,163.54,163.5,3.059]
[1730671877018,14.52345662,163.54,163.47,8.44495662]
[1730671877316,14.52345662,163.54,163.5,3.059]
[1730671878730,14.52345662,163.54,163.5,3.0591]
[1730671881312,3.0591,163.5,163.47,3.0597]
[1730671881518,3.0591,163.5,163.4,7.4315]
[1730671881519,8.44495662,163.49,163.44,8.44495662]
[1730671882223,8.44495662,163.49,163.46,3.0598]
[1730671883220,11.50425662,163.49,163.45,3.0599]
[1730671884523,11.50425662,163.49,163.43,8.44495662]
[1730671884524,8.44495662,163.51,163.46,3.0598]
[1730671884831,3.0592,163.5,163.46,3.0598]
[1730671892435,3.0592,163.5,163.46,11.50475662]
[1730671897833,8.44495662,163.48,163.42,11.46495662]
[1730671899340,3.0597,163.47,163.44,3.0602]
[1730671899533,11.50465662,163.47,163.44,3.0602]
[1730671900127,11.47889383,163.7,163.46,8.44495662]
[1730671900128,3.059,163.51,163.46,8.44495662]
[1730671900329,8.44495662,163.55,163.49,8.44495662]
[1730671900535,8.44495662,163.57,163.5,8.44495662]
[1730671900739,8.44495662,163.57,163.52,8.44495662]
[1730671901037,8.44495662,163.57,163.54,3.0583]
[1730671901245,8.44495662,163.57,163.52,8.44495662]
[1730671901635,11.50285662,163.57,163.53,3.0585]
[1730671906644,8.44495662,163.56,163.5,8.44495662]
[1730671906850,8.44495662,163.55,163.49,9.77275662]
[1730671907250,11.50315662,163.55,163.49,9.77275662]
[1730671907450,11.50315662,163.55,163.51,3.0589]
[1730671907751,3.0575,163.59,163.54,8.44495662]
[1730671908050,3.02,163.6,163.56,3.0579]
[1730671908248,3.0575,163.59,163.56,3.0579]
[1730671908547,8.44495662,163.58,163.54,3.0584]
[1730671909242,3.058,163.56,163.52,3.0586]
[1730671911650,11.50295662,163.56,163.52,3.0586]
[1730671912155,11.50325662,163.55,163.51,3.0589]
[1730671912656,3.0583,163.55,163.51,3.0589]
[1730671912852,3.0583,163.55,163.51,11.50375662]
[1730671913045,11.50305662,163.56,163.51,8.44495662]
[1730671913247,8.44495662,163.55,163.5,8.44495662]
[1730671913562,1.3614,163.59,163.45,9.74275662]
[1730671913563,8.44495662,163.52,163.45,9.74275662]
[1730671913742,3.0593,163.5,163.45,8.44495662]
[1730671915354,3.0593,163.5,163.46,3.0598]
[1730671918355,3.0593,163.5,163.45,8.44495662]
[1730671918356,6.0788,163.52,163.48,11.50445662]
[1730671919455,6.0788,163.52,163.48,3.0595]
[1730671919655,6.0788,163.52,163.47,8.44495662]
[1730671919656,6.0788,163.52,163.47,11.50455662]
[1730671920356,8.44495662,163.58,163.5,8.44495662]
[1730671920546,699.59798892,163.77,163.48,3.02]
[1730671920547,8.44495662,163.6,163.54,8.44495662]
[1730671920751,53.4333338,163.62,163.56,8.44495662]
[1730671921263,3.0574,163.6,163.56,8.44495662]
[1730671921465,53.4333338,163.62,163.56,8.44495662]
[1730671921761,3.0575,163.59,163.56,8.44495662]
[1730671922653,3.0571,163.61,163.57,3.0578]
[1730671922959,44.98837718,163.62,163.57,8.44495662]
[1730671923160,8.44495662,163.65,163.59,8.44495662]
[1730671923357,3.0566,163.64,163.6,3.0572]
[1730671923554,3.02,163.66,163.57,13.20495183]
[1730671923767,13.20495183,163.64,163.56,3.02]
[1730671924062,13.20495183,163.64,163.54,3.02]
[1730671924251,13.20495183,163.64,163.53,16.22495183]
[1730671924766,3.0574,163.6,163.55,3.0581]
[1730671928261,3.0574,163.6,163.55,3.058]
[1730671931158,3.0574,163.6,163.56,3.058]
[1730671949673,8.45620699,163.61,163.55,8.45620699]
[1730671949989,8.45620699,163.57,163.51,11.47620699]
[1730671950987,3.058,163.56,163.52,3.0587]
[1730671952589,3.058,163.56,163.52,11.51490699]
[1730671952783,53.43959373,163.61,163.55,8.45620699]
[1730671953295,3.0576,163.59,163.55,11.51430699]
[1730671953483,3.0576,163.59,163.55,8.45620699]
[1730671954484,3.0576,163.59,163.56,3.0579]
[1730671955795,3.0575,163.59,163.55,8.45620699]
[1730671956099,8.45620699,163.6,163.54,11.51450699]
[1730671956687,3.0575,163.59,163.55,11.51430699]
[1730671956989,44.98338674,163.61,163.57,8.45620699]
[1730671957393,3.0573,163.6,163.57,8.45620699]
[1730671961091,48.04048674,163.61,163.59,8.45620699]
[1730671961697,48.04048674,163.61,163.57,8.45620699]
[1730671963086,48.04048674,163.61,163.57,11.51390699]
[1730671963394,44.98338674,163.61,163.57,11.51390699]
[1730671963596,3.0573,163.6,163.57,11.51390699]
[1730671966100,44.98338674,163.61,163.57,11.51390699]
[1730671966298,48.04048674,163.61,163.57,11.51390699]
[1730671967388,3.0573,163.6,163.57,11.51390699]
[1730671969502,3.0573,163.6,163.56,11.51410699]
[1730671970392,3.0579,163.57,163.53,3.0585]
[1730671970598,3.0579,163.57,163.53,11.51470699]
[1730671972391,3.0574,163.6,163.56,11.51410699]
[1730671972597,3.0574,163.6,163.57,8.45620699]
[1730671973902,44.98338674,163.61,163.57,8.45620699]
[1730671974103,3.0574,163.59,163.57,8.45620699]
[1730671974705,44.98338674,163.61,163.57,8.45620699]
[1730671974907,3.0574,163.6,163.57,8.45620699]
[1730671976210,3.0575,163.59,163.56,8.45620699]
[1730671986905,8.45620699,163.72,163.57,11.47620699]
[1730671987223,8.45620699,163.72,163.66,8.45620699]
[1730671987510,8.45620699,163.69,163.63,8.45620699]
[1730671987724,8.45620699,163.68,163.63,8.45620699]
[1730671988215,3.0562,163.66,163.63,8.45620699]
[1730671989618,3.0558,163.68,163.64,3.0565]
[1730671990115,3.0558,163.68,163.65,8.45620699]
[1730671991912,8.45620699,163.66,163.6,8.45620699]
[1730671992516,3.0566,163.64,163.6,11.51330699]
[1730671992713,8.45620699,163.66,163.6,8.45620699]
[1730671993613,8.45620699,163.66,163.6,11.51340699]
[1730671994018,3.0565,163.65,163.6,8.45620699]
[1730671994218,8.45620699,163.66,163.6,8.45620699]
[1730671995328,8.45620699,163.66,163.6,11.51340699]
[1730671995329,3.0567,163.64,163.6,11.51340699]
[1730671996725,3.0567,163.64,163.62,8.45620699]
[1730672000526,3.0564,163.65,163.62,8.45620699]
[1730672000733,2.6597,163.68,163.63,8.45620699]
[1730672000916,3.0561,163.67,163.63,8.45620699]
[1730672001728,2.6597,163.68,163.63,8.45620699]
[1730672001729,3.0562,163.66,163.63,8.45620699]
[1730672005135,8.45620699,163.66,163.6,8.45620699]
[1730672005331,8.45620699,163.64,163.58,9.73680699]
[1730672005736,3.0572,163.61,163.58,11.51370699]
[1730672006036,3.0572,163.61,163.53,2.6407]
[1730672006037,8.45620699,163.61,163.56,8.45620699]
[1730672006231,8.45620699,163.63,163.56,8.45620699]
[1730672006534,8.45620699,163.63,163.58,8.45620699]
[1730672007135,3.0571,163.61,163.58,11.51380699]
[1730672007335,2.6597,163.68,163.6,8.45620699]
[1730672007535,2.6597,163.68,163.64,8.45620699]
[1730672008237,3.0563,163.66,163.64,8.45620699]
[1730672012942,3.0561,163.67,163.64,11.51260699]
[1730672014246,3.02,163.69,163.64,8.45620699]
[1730672014534,3.0562,163.66,163.64,8.45620699]
[1730672019138,11.47620699,163.69,163.64,8.45620699]
[1730672019338,8.45620699,163.67,163.61,8.45620699]
[1730672020232,3.0568,163.63,163.61,8.45620699]
[1730672024141,8.45620699,163.65,163.6,8.45620699]
[1730672024535,3.0569,163.62,163.6,8.45620699]
[1730672027443,3.0571,163.61,163.6,8.45620699]
[1730672028441,3.02,163.65,163.6,8.45620699]
[1730672028836,11.47620699,163.65,163.59,8.45620699]
[1730672029244,3.0573,163.6,163.59,8.45620699]
[1730672029440,8.45620699,163.64,163.57,8.45620699]
[1730672029851,3.0576,163.59,163.57,8.45620699]
[1730672032951,8.45620699,163.64,163.58,8.45620699]
[1730672033142,8.45620699,163.62,163.57,8.45620699]
[1730672033343,3.02,163.61,163.57,8.45620699]
[1730672033744,3.0574,163.59,163.57,8.45620699]
[1730672036143,3.0574,163.59,163.57,8.45620699]
[1730672037046,3.0579,163.57,163.55,8.45620699]
[1730672037263,3.0579,163.57,163.53,8.45620699]
[1730672037461,8.45620699,163.6,163.53,8.45620699]
[1730672037954,9.83450699,163.6,163.53,8.45620699]
[1730672038350,3.058,163.57,163.53,11.51470699]
[1730672039248,3.058,163.56,163.53,11.51470699]
[1730672040148,8.45620699,163.58,163.53,8.45620699]
[1730672040356,3.0583,163.55,163.53,8.45620699]
[1730672041061,3.0583,163.55,163.52,8.45620699]
[1730672042044,8.45620699,163.57,163.52,8.45620699]
[1730672042248,3.0584,163.54,163.51,8.45620699]
[1730672045356,3.0588,163.52,163.49,8.45620699]
[1730672046176,8.45620699,163.55,163.49,8.45620699]
[1730672046365,3.02,163.57,163.48,8.45620699]
[1730672046366,3.0591,163.51,163.48,8.45620699]
[1730672048063,8.45620699,163.54,163.48,8.45620699]
[1730672048365,3.0593,163.5,163.46,11.51610699]
[1730672049462,3.0597,163.48,163.45,8.45620699]
[1730672053485,3.0598,163.47,163.43,11.51660699]
[1730672054364,3.02,163.49,163.45,8.45620699]
[1730672054561,3.0591,163.5,163.46,11.51590699]
[1730672055967,3.0589,163.51,163.48,11.51560699]
[1730672056167,48.02140428,163.54,163.5,8.45620699]
[1730672056573,3.0591,163.51,163.49,8.45620699]
[1730672057268,56.47761127,163.54,163.49,8.45620699]
[1730672057572,3.0591,163.51,163.48,8.45620699]
[1730672057875,56.47761127,163.54,163.48,8.45620699]
[1730672058066,3.0591,163.5,163.48,8.45620699]
[1730672060971,56.47761127,163.54,163.49,8.45620699]
[1730672061172,3.02,163.54,163.49,8.45620699]
[1730672061676,3.0591,163.51,163.48,8.45620699]
[1730672066272,3.0591,163.51,163.49,8.45620699]
[1730672066473,3.0588,163.52,163.49,11.51550699]
[1730672069281,3.02,163.54,163.49,8.45620699]
[1730672069474,3.0586,163.53,163.5,3.059]
[1730672069677,3.02,163.54,163.49,8.45620699]
[1730672069887,3.02,163.54,163.51,8.45620699]
[1730672070282,3.02,163.54,163.51,11.51510699]
[1730672070470,8.45620699,163.57,163.51,11.51510699]
[1730672070674,3.02,163.56,163.51,11.51510699]
[1730672071278,3.0584,163.54,163.51,11.51510699]
[1730672076385,44.99786072,163.55,163.51,8.45620699]
[1730672076386,3.0586,163.53,163.51,8.45620699]
[1730672076775,44.99786072,163.55,163.49,8.45620699]
[1730672077393,8.45620699,163.5,163.43,8.45620699]
[1730672077586,8.45620699,163.47,163.41,8.45620699]
[1730672077883,3.0596,163.48,163.44,3.0602]
[1730672078088,11.47620699,163.49,163.44,3.0602]
[1730672079286,3.0597,163.47,163.44,3.0602]
[1730672079684,3.02,163.49,163.44,8.45620699]
[1730672079889,3.02,163.49,163.46,11.51590699]
[1730672080689,6.0794,163.49,163.46,8.45620699]
[1730672080890,3.02,163.49,163.45,8.45620699]
[1730672081075,8.45620699,163.5,163.45,8.45620699]
[1730672081284,11.47620699,163.5,163.45,8.45620699]
[1730672081685,3.0597,163.48,163.45,8.45620699]
[1730672082393,3.0597,163.47,163.45,8.45620699]
[1730672082785,3.0597,163.47,163.43,3.0604]
[1730672082991,3.0597,163.47,163.43,11.51660699]
[1730672088702,3.0597,163.47,163.44,3.0602]
[1730672089597,3.0594,163.49,163.46,3.0599]
[1730672089892,3.0594,163.49,163.44,8.45620699]
[1730672091295,3.0594,163.49,163.45,3.06]
[1730672097306,3.0598,163.47,163.43,11.51660699]
[1730672098403,3.0598,163.47,163.43,8.45620699]
[1730672098602,3.0598,163.47,163.44,3.0602]
[1730672099607,3.0598,163.47,163.43,11.51660699]
[1730672100307,3.0598,163.47,163.43,3.0604]
[1730672101094,3.06,163.46,163.42,3.0606]
[1730672101402,8.45620699,163.47,163.42,3.0606]
[1730672101610,3.0602,163.45,163.41,3.0608]
[1730672103513,3.0602,163.45,163.42,8.45620699]
[1730672103805,8.45620699,163.48,163.42,11.51680699]
[1730672104003,3.06,163.46,163.42,11.51680699]
[1730672105808,2.7707,163.49,163.44,8.45620699]
[1730672106003,3.0596,163.48,163.44,11.51630699]
[1730672106309,11.47620699,163.5,163.44,11.51630699]
[1730672106508,3.0596,163.48,163.44,11.51630699]
[1730672107010,11.47620699,163.5,163.44,11.51630699]
[1730672107604,8.45620699,163.49,163.44,3.0601]
[1730672108311,3.0598,163.47,163.44,3.0601]
[1730672109719,3.0597,163.47,163.44,3.0601]
[1730672111507,3.0596,163.48,163.45,3.06]
[1730672111715,8.45620699,163.49,163.45,3.06]
[1730672113121,11.47620699,163.49,163.45,3.06]
[1730672113314,3.0597,163.47,163.45,3.06]
[1730672114816,3.0597,163.47,163.44,3.0602]
[1730672121633,8.45620699,163.52,163.46,8.45620699]
[1730672121837,8.45620699,163.54,163.48,8.45620699]
[1730672122027,8.45620699,163.6,163.53,8.45620699]
[1730672122229,8.45620699,163.61,163.55,8.45620699]
[1730672122430,8.45620699,163.6,163.54,8.45620699]
[1730672122634,8.45620699,163.57,163.5,11.47620699]
[1730672123036,3.0582,163.56,163.51,3.0589]
[1730672124036,3.0582,163.56,163.52,8.45620699]
[1730672125246,6.0778,163.58,163.54,3.0584]
[1730672125438,3.0578,163.58,163.54,3.0584]
[1730672125945,8.45620699,163.6,163.54,3.0584]
[1730672126147,3.0575,163.59,163.55,8.45620699]
[1730672126644,3.0575,163.59,163.55,11.51440699]
[1730672127033,3.0573,163.6,163.55,11.51440699]
[1730672127232,3.0573,163.6,163.55,8.45620699]
[1730672127439,3.0573,163.6,163.56,3.0579]
[1730672128445,3.0573,163.6,163.56,11.51410699]
[1730672130541,8.45620699,163.6,163.55,8.45620699]
[1730672131247,3.0575,163.59,163.55,8.45620699]
[1730672132042,3.0575,163.59,163.55,11.51440699]
[1730672132743,8.45620699,163.6,163.55,8.45620699]
[1730672132943,3.0579,163.57,163.53,8.45620699]
[1730672134353,3.0579,163.57,163.53,11.51460699]
[1730672135742,8.45620699,163.59,163.53,8.45620699]
[1730672135941,3.0578,163.58,163.54,3.0584]
[1730672137262,3.0578,163.58,163.54,11.51460699]
[1730672138246,11.51360699,163.6,163.56,3.0579]
[1730672138446,8.45620699,163.6,163.56,3.0579]
[1730672138951,11.51380699,163.59,163.54,3.0584]
[1730672139152,8.45620699,163.59,163.54,3.0584]
[1730672140249,3.0578,163.58,163.54,3.0584]
[1730672143449,8.45620699,163.6,163.56,3.0579]
[1730672143450,3.0573,163.6,163.56,3.0579]
[1730672143654,57.78510854,163.62,163.56,3.0579]
[1730672143847,57.78510854,163.62,163.55,8.45620699]
[1730672144647,3.0576,163.59,163.55,11.51440699]
[1730672145253,3.0579,163.57,163.53,11.51470699]
[1730672145852,3.0584,163.55,163.5,11.51520699]
[1730672146052,3.0584,163.55,163.5,8.45620699]
[1730672146364,3.0584,163.55,163.48,3.0]
[1730672146365,3.0584,163.55,163.51,8.45620699]
[1730672146560,3.0,163.58,163.51,8.45620699]
[1730672146561,3.0581,163.56,163.51,8.45620699]
[1730672148351,3.0581,163.56,163.52,3.0587]
[1730672152068,3.0,163.58,163.54,8.45620699]
[1730672152275,3.0,163.58,163.56,8.45620699]
[1730672152559,3.0,163.58,163.56,11.51420699]
[1730672152952,4.3276,163.6,163.56,11.51420699]
[1730672155461,1.2703,163.6,163.56,11.51420699]
[1730672155764,3.0575,163.59,163.56,11.51420699]
[1730672159473,3.0575,163.59,163.56,11.51420699]
[1730672160758,3.0575,163.59,163.55,3.0581]
[1730672173379,9.72650699,163.6,163.54,8.45620699]
[1730672173581,4.3277,163.6,163.56,3.0579]
[1730672173979,1.2703,163.6,163.55,8.45620699]
[1730672174280,3.0576,163.59,163.55,8.45620699]
[1730672174484,44.97910155,163.62,163.58,8.45620699]
[1730672175382,44.97910155,163.62,163.59,3.0574]
[1730672177583,48.03600155,163.62,163.59,3.0574]
[1730672179593,44.97910155,163.62,163.58,8.45620699]
[1730672179884,44.97910155,163.62,163.6,3.0571]
[1730672185291,48.03610155,163.62,163.59,3.0574]
[1730672187295,8.45620699,163.61,163.56,8.45620699]
[1730672187491,8.45620699,163.6,163.54,8.45620699]
[1730672187788,8.45620699,163.6,163.55,3.0581]
[1730672187984,11.45620699,163.6,163.55,3.0581]
[1730672188389,3.0577,163.58,163.55,3.0581]
[1730672189490,3.0577,163.58,163.55,11.51430699]
[1730672192091,3.0,163.6,163.57,8.45620699]
[1730672192590,1.3363,163.61,163.57,8.45620699]
[1730672192801,3.0574,163.6,163.57,8.45620699]
[1730672193187,9.79250699,163.61,163.55,8.45620699]
[1730672193387,3.0575,163.59,163.55,11.51430699]
[1730672194794,3.0575,163.59,163.56,3.058]
[1730672199493,53.43530854,163.62,163.57,8.45620699]
[1730672199800,44.97910155,163.62,163.58,8.45620699]
[1730672200197,48.03610155,163.62,163.59,3.0574]
[1730672200399,44.97910155,163.62,163.6,8.45620699]
[1730672201102,44.97910155,163.62,163.6,11.51340699]
[1730672201401,2.6286,163.66,163.61,8.45620699]
[1730672202103,8.45620699,163.7,163.65,8.45620699]
[1730672202408,8.45620699,163.71,163.66,8.45620699]
[1730672202703,3.0,163.72,163.66,8.45620699]
[1730672203206,3.0553,163.71,163.67,3.0558]
[1730672203399,3.0,163.72,163.67,3.0558]
[1730672203594,3.0,163.72,163.59,3.0]
[1730672203595,8.45620699,163.71,163.65,8.45620699]
[1730672203901,3.0557,163.69,163.65,11.51240699]
[1730672207298,8.45620699,163.68,163.63,3.0566]
[1730672207499,11.45620699,163.68,163.63,3.0566]
[1730672207800,11.45620699,163.68,163.56,3.9488]
[1730672207801,8.45620699,163.64,163.56,8.45620699]
[1730672208004,11.45620699,163.63,163.56,11.51410699]
[1730672208302,11.45620699,163.63,163.54,8.45620699]
[1730672208303,8.45620699,163.6,163.54,8.45620699]
[1730672208607,8.45620699,163.6,163.54,11.51450699]
[1730672208909,3.0575,163.59,163.54,11.51450699]
[1730672210206,3.0577,163.58,163.54,8.45620699]
[1730672210503,8.45620699,163.6,163.53,8.45620699]
[1730672210803,3.0,163.59,163.53,8.45620699]
[1730672210997,8.45620699,163.56,163.5,8.45620699]
[1730672211399,12.58950699,163.58,163.52,8.45620699]
[1730672212496,11.19190699,163.58,163.53,8.45620699]
[1730672213208,3.058,163.57,163.53,8.45620699]
[1730672217911,3.0582,163.56,163.52,8.45620699]
[1730672218905,3.0582,163.56,163.52,11.51490699]
[1730672220409,3.0582,163.55,163.51,3.0589]
[1730672220902,11.51440699,163.55,163.51,3.0589]
[1730672221304,3.0587,163.53,163.49,3.0591]
[1730672222102,8.45620699,163.54,163.49,3.0591]
[1730672222322,11.51460699,163.54,163.49,3.0591]
[1730672223224,11.51460699,163.54,163.5,3.0591]
[1730672224418,3.0584,163.54,163.5,3.0591]
[1730672224820,11.45620699,163.55,163.5,8.45620699]
[1730672225013,8.45620699,163.56,163.52,3.0586]
[1730672226022,11.51430699,163.56,163.52,3.0586]
[1730672229130,6.0579,163.57,163.53,3.0584]
[1730672230226,3.058,163.56,163.53,3.0584]
[1730672232634,6.0578,163.57,163.54,3.0584]
[1730672234217,8.45620699,163.56,163.5,8.45620699]
[1730672234422,11.51430699,163.56,163.5,8.45620699]
[1730672234831,11.51430699,163.56,163.52,3.0586]
[1730672235033,8.45620699,163.56,163.52,3.0586]
[1730672235215,3.0583,163.55,163.52,3.0586]
[1730672237918,8.45620699,163.56,163.51,3.0588]
[1730672237919,3.0584,163.54,163.51,3.0588]
[1730672239533,11.51460699,163.54,163.51,3.0588]
[1730672239723,11.51480699,163.53,163.5,3.0591]
[1730672239921,8.45620699,163.53,163.46,8.45620699]
[1730672240133,8.45620699,163.53,163.45,8.45620699]
[1730672240134,8.45620699,163.5,163.45,8.45620699]
[1730672240325,8.45620699,163.49,163.42,8.45620699]
[1730672240531,8.45620699,163.47,163.42,8.45620699]
[1730672241043,3.0599,163.46,163.42,3.0605]
[1730672241828,3.0603,163.44,163.41,8.45620699]
[1730672242134,11.51650699,163.44,163.4,3.0609]
[1730672243540,8.45620699,163.44,163.38,1.2917]
[1730672243742,8.45620699,163.44,163.39,3.061]
[1730672244036,8.45620699,163.43,163.38,1.2917]
[1730672244246,11.51680699,163.43,163.38,4.353]
[1730672245138,11.51680699,163.43,163.38,3.0613]
[1730672248136,14.51680699,163.43,163.38,3.0613]
[1730672249535,14.51680699,163.43,163.36,8.45620699]
[1730672249732,14.51680699,163.43,163.39,3.0612]
[1730672253938,14.51680699,163.43,163.34,3.0]
[1730672253939,8.45620699,163.41,163.34,8.45620699]
[1730672254443,3.0,163.43,163.34,8.45620699]
[1730672254747,3.0,163.43,163.36,3.0616]
[1730672254748,11.51720699,163.4,163.36,3.0616]
[1730672256246,3.0614,163.38,163.34,3.0621]
[1730672259442,11.51760699,163.38,163.34,3.0621]
[1730672261848,11.51760699,163.38,163.33,8.45620699]
[1730672262042,11.51760699,163.38,163.35,3.0619]
[1730672269354,8.45620699,163.38,163.35,3.0619]
[1730672269843,8.45620699,163.38,163.31,8.45620699]
[1730672270050,14.51730699,163.4,163.36,3.0617]
[1730672270843,8.45620699,163.38,163.36,3.0617]
[1730672271045,8.45620699,163.38,163.3,4.0336]
[1730672271253,8.45620699,163.37,163.33,3.0623]
[1730672271452,8.45620699,163.37,163.31,8.45620699]
[1730672272442,8.45620699,163.37,163.3,8.45620699]
[1730672272644,8.45620699,163.35,163.28,8.45620699]
[1730672272845,8.45620699,163.34,163.28,8.45620699]
[1730672273048,8.45620699,163.32,163.3,3.0627]
[1730672274955,8.45620699,163.32,163.25,12.53900699]
[1730672275264,8.45620699,163.32,163.29,3.063]
[1730672275457,8.45620699,163.32,163.25,12.53900699]
[1730672275657,8.45620699,163.32,163.29,3.063]
[1730672275860,8.45620699,163.31,163.29,3.063]
[1730672276360,8.45620699,163.31,163.25,12.53900699]
[1730672276361,8.45620699,163.31,163.28,3.0632]
[1730672279152,8.45620699,163.31,163.29,3.063]
[1730672282567,11.45620699,163.32,163.29,3.063]
[1730672283571,8.45620699,163.31,163.29,3.063]
[1730672287570,45.05974919,163.33,163.29,8.45620699]
[1730672288273,45.05974919,163.33,163.32,3.0625]
[1730672290276,45.05974919,163.33,163.31,3.0626]
[1730672290573,8.45620699,163.34,163.29,8.45620699]
[1730672290773,8.45620699,163.34,163.32,3.0623]
[1730672293776,11.51850699,163.34,163.3,3.0628]
[1730672294277,11.51870699,163.32,163.28,3.0631]
[1730672297079,8.45620699,163.34,163.27,8.45620699]
[1730672297281,8.45620699,163.34,163.29,8.45620699]
[1730672298275,8.45620699,163.34,163.31,3.0626]
[1730672298790,8.45620699,163.35,163.3,8.45620699]
[1730672298981,3.0,163.36,163.32,3.0624]
[1730672299983,6.0618,163.36,163.32,3.0624]
[1730672301178,3.0,163.36,163.3,8.45620699]
[1730672301481,3.0,163.36,163.31,8.45620699]
[1730672302484,11.51790699,163.37,163.33,3.0622]
[1730672303383,8.45620699,163.37,163.31,8.45620699]
[1730672303589,8.45620699,163.37,163.35,3.0619]
[1730672303785,8.45620699,163.37,163.31,8.45620699]
[1730672304081,8.45620699,163.37,163.34,3.062]
[1730672305692,11.51780699,163.37,163.34,3.062]